[Event "WYCC 2018 G16"]
[Site "Halkidiki"]
[Date "2018.10.23"]
[Round "5"]
[White "Hajiyeva, Laman"]
[Black "Goltseva, Ekaterina"]
[Result "1/2-1/2"]
[ECO "E49"]
[WhiteElo "1916"]
[BlackElo "2169"]
[Annotator "NA"]
[PlyCount "82"]
[EventDate "2018.10.20"]
[EventType "swiss"]
[EventCountry "GRE"]
[SourceTitle "playchess.com"]
[Source "ChessBase"]
[SourceQuality "1"]
[TimeControl "40/5400+30:1800+30"]

1. d4 {[%emt 0:00:00]} Nf6 {[%emt 0:00:00]} 2. c4 {[%emt 0:00:00]} e6 {[%emt 0:00:00]} 3. Nc3 {[%emt 0:00:00]} Bb4 {[%emt 0:00:45]} 4. e3 {[%emt 0:00:00]} O-O {[%emt 0:01:00]} 5. Bd3 {[%emt 0:00:01]} d5 {[%emt 0:00:48]} 6. a3 {[%emt 0:00:54]} Bxc3+ {[%emt 0:06:41]} 7. bxc3 {[%emt 0:00:02]} c5 {[%emt 0:00:42]} 8. cxd5 {[%emt 0:00:21]} Qxd5 {[%emt 0:09:49]} 9. Nf3 {[%emt 0:05:05]} cxd4 {[%emt 0:08:58]} 10. cxd4 {[%emt 0:01:45]} b6 {[%emt 0:01:51]} 11. O-O {[%emt 0:02:08]} Bb7 {[%emt 0:01:02]} 12. Bb2 {[%emt 0:03:25]} Nbd7 {[%emt 0:03:07]} 13. Qe2 $14 {[%emt 0:09:50]} Rac8 {[%emt 0:04:58]} 14. Rac1 {[%emt 0:02:17]} Ne4 {[%emt 0:05:00]} 15. Bc4 {[%emt 0:09:33]} Qh5 {[%emt 0:07:00]} 16. Rfd1 {[%emt 0:03:52]} Rfd8 {[%emt 0:06:51]} 17. Ne1 {[%emt 0:07:19]} Qxe2 {[%emt 0:01:33]} 18. Bxe2 {[%emt 0:00:09]} Nd6 {[%emt 0:00:38]} 19. f3 {[%emt 0:04:18]} b5 {[%emt 0:05:21]} 20. e4 {[%emt 0:09:48]} Nb6 {[%emt 0:03:03]} 21. Bc3 {[%emt 0:06:34]} Ndc4 {[%emt 0:03:34]} 22. Bb4 {[%emt 0:04:14]} a5 {[%emt 0:02:20]} 23. Be7 {[%emt 0:05:32]} Rd7 {[%emt 0:02:02]} 24. Bc5 {[%emt 0:00:23]} Na4 {[%emt 0:03:11]} 25. Nd3 {[%emt 0:01:45]} h6 {[%emt 0:03:39]} 26. Kf2 {[%emt 0:05:47]} e5 {[%emt 0:02:48]} 27. f4 {[%emt 0:01:25]} Bxe4 {[%emt 0:07:56]} 28. Nxe5 {[%emt 0:02:48]} Nxe5 {[%emt 0:00:33]} 29. fxe5 {[%emt 0:00:04]} Nxc5 {[%emt 0:03:43]} 30. Rxc5 {[%emt 0:02:44]} Rxc5 31. dxc5 {[%emt 0:00:00]} Rc7 {[%emt 0:02:04]} 32. Rc1 {[%emt 0:01:24]} b4 {[%emt 0:01:47]} 33. axb4 {[%emt 0:00:01]} axb4 {[%emt 0:00:03]} 34. Bc4 {[%emt 0:03:18]} Kf8 {[%emt 0:00:42]} 35. Bb3 {[%emt 0:00:40]} Ke7 {[%emt 0:00:54]} 36. g3 {[%emt 0:00:52]} f6 {[%emt 0:01:16]} 37. Ke3 {[%emt 0:05:08]} Bf5 {[%emt 0:00:35]} 38. Kf4 {[%emt 0:00:47]} Bc8 {[%emt 0:02:08]} 39. exf6+ {[%emt 0:01:09]} Kxf6 {[%emt 0:00:10]} 40. Rc4 {[%emt 0:00:00]} g5+ {[%emt 0:00:00]} 41. Kf3 {[%emt 0:03:55]} Bf5 {[%emt 0:10:52] Ke4 Ke5+} 1/2-1/2

[Event "WYCC 2018 G16"]
[Site "Halkidiki"]
[Date "2018.10.23"]
[Round "5"]
[White "Nemcova, Karin"]
[Black "Nguyen, Vu Thu Hien"]
[Result "1-0"]
[ECO "B17"]
[WhiteElo "1888"]
[BlackElo "1841"]
[Annotator "NA"]
[PlyCount "105"]
[EventDate "2018.10.20"]
[EventType "swiss"]
[EventCountry "GRE"]
[SourceTitle "playchess.com"]
[Source "ChessBase"]
[SourceQuality "1"]
[TimeControl "40/5400+30:1800+30"]

1. e4 {[%emt 0:00:00]} c6 {[%emt 0:00:00]} 2. d4 {[%emt 0:00:00]} d5 {[%emt 0:00:00]} 3. Nd2 {[%emt 0:00:00]} dxe4 {[%emt 0:00:00]} 4. Nxe4 {[%emt 0:00:00]} Nd7 {[%emt 0:00:00]} 5. Nf3 {[%emt 0:00:51]} Ngf6 {[%emt 0:00:03]} 6. Nxf6+ {[%emt 0:00:23]} Nxf6 {[%emt 0:00:06]} 7. c3 {[%emt 0:00:10]} e6 {[%emt 0:00:34]} 8. Bd3 {[%emt 0:00:36]} Be7 {[%emt 0:00:31]} 9. O-O {[%emt 0:00:38]} O-O {[%emt 0:00:05]} 10. Bg5 {[%emt 0:03:17]} h6 {[%emt 0:00:48]} 11. Bh4 {[%emt 0:00:26]} b6 {[%emt 0:00:12]} 12. Ne5 {[%emt 0:04:50]} Bb7 {[%emt 0:00:11]} 13. Bc2 {[%emt 0:03:34]} Qe8 {[%emt 0:11:30]} 14. Bxf6 {[%emt 0:07:36]} Bxf6 {[%emt 0:00:06]} 15. Ng4 {[%emt 0:00:10]} Be7 {[%emt 0:10:48]} 16. Qd3 {[%emt 0:01:47]} f5 {[%emt 0:03:36]} 17. Rfe1 {[%emt 0:06:25]} Bd6 {[%emt 0:03:12]} 18. Bb3 {[%emt 0:09:52]} Bc8 {[%emt 0:01:05]} 19. Ne5 {[%emt 0:00:24]} Rf6 {[%emt 0:14:14]} 20. Re2 {[%emt 0:11:12]} a5 {[%emt 0:04:19]} 21. Qf3 {[%emt 0:10:59]} a4 {[%emt 0:01:55]} 22. Bc4 {[%emt 0:00:33]} Bb7 {[%emt 0:21:43]} 23. Rae1 {[%emt 0:04:00]} Ra7 {[%emt 0:01:05]} 24. Nd3 {[%emt 0:03:53]} Bc8 {[%emt 0:00:09]} 25. Nf4 {[%emt 0:04:40]} Bxf4 {[%emt 0:00:39]} 26. Qxf4 {[%emt 0:00:02]} b5 {[%emt 0:01:09]} 27. Bd3 {[%emt 0:00:10]} Qf7 {[%emt 0:09:34]} 28. c4 {[%emt 0:04:04]} Ba6 {[%emt 0:08:47]} 29. c5 {[%emt 0:10:05]} Rd7 {[%emt 0:00:56]} 30. h4 {[%emt 0:04:14]} Bb7 {[%emt 0:00:09]} 31. a3 {[%emt 0:00:18]} Kh7 {[%emt 0:00:51]} 32. Bb1 {[%emt 0:01:06]} Bc8 {[%emt 0:01:23]} 33. Rxe6 {[%emt 0:04:42]} Rxd4 {[%emt 0:01:02]} 34. Rxf6 {[%emt 0:01:41]} Qxf6 {[%emt 0:00:02]} 35. Qc7 {[%emt 0:00:23]} Bd7 {[%emt 0:00:26]} 36. Ba2 {[%emt 0:02:15]} Rd2 {[%emt 0:00:18]} 37. Qb8 {[%emt 0:01:28]} Rxb2 {[%emt 0:02:11]} 38. Bg8+ {[%emt 0:00:40]} Kg6 {[%emt 0:00:37]} 39. Qg3+ {[%emt 0:00:47]} Kh5 {[%emt 0:00:01]} 40. Qf3+ {[%emt 0:00:00]} Kg6 {[%emt 0:00:00]} 41. h5+ {[%emt 0:23:03]} Kg5 {[%emt 0:01:25]} 42. Qd1 {[%emt 0:01:55]} Bc8 {[%emt 0:05:58]} 43. Re8 {[%emt 0:03:42]} f4 {[%emt 0:07:51]} 44. Rxc8 {[%emt 0:01:01]} Qf5 {[%emt 0:00:24]} 45. Qd8+ {[%emt 0:00:14]} Kxh5 {[%emt 0:00:10]} 46. Qe8+ {[%emt 0:00:38]} g6 {[%emt 0:00:40]} 47. Rxc6 {[%emt 0:01:10]} f3 {[%emt 0:03:36]} 48. Rxg6 {[%emt 0:00:22]} Re2 {[%emt 0:02:41]} 49. Re6+ {[%emt 0:00:21]} Kg5 {[%emt 0:02:28]} 50. Qe7+ {[%emt 0:00:55]} Kf4 {[%emt 0:00:42]} 51. Qh4+ {[%emt 0:00:19]} Qg4 {[%emt 0:00:08]} 52. g3+ {[%emt 0:00:03]} Kf5 {[%emt 0:00:08]} 53. Qf6# 1-0

[Event "WYCC 2018 G16"]
[Site "Halkidiki"]
[Date "2018.10.23"]
[Round "5"]
[White "Moerwald, Magdalena"]
[Black "Gomez Barrera, Javiera Belen"]
[Result "0-1"]
[ECO "C54"]
[WhiteElo "1875"]
[BlackElo "2136"]
[Annotator "NA"]
[PlyCount "112"]
[EventDate "2018.10.20"]
[EventType "swiss"]
[EventCountry "GRE"]
[SourceTitle "playchess.com"]
[Source "ChessBase"]
[SourceQuality "1"]
[TimeControl "40/5400+30:1800+30"]

1. e4 {[%emt 0:00:00]} e5 {[%emt 0:00:00]} 2. Nf3 {[%emt 0:00:00]} Nc6 {[%emt 0:00:00]} 3. Bc4 {[%emt 0:00:00]} Bc5 {[%emt 0:00:00]} 4. c3 {[%emt 0:00:00]} Nf6 {[%emt 0:00:00]} 5. d3 {[%emt 0:00:05]} d6 {[%emt 0:00:49]} 6. Bb3 {[%emt 0:00:44]} a6 {[%emt 0:01:06]} 7. h3 {[%emt 0:01:45]} h6 {[%emt 0:03:17]} 8. Nbd2 {[%emt 0:01:02]} O-O {[%emt 0:02:45]} 9. Nf1 {[%emt 0:00:27]} d5 $11 {[%emt 0:01:53] LiveBook: 24 Games} 10. Qe2 {[%emt 0:01:38]} a5 {[%emt 0:18:55]} 11. a4 {[%emt 0:03:57]} b6 {[%emt 0:05:03]} 12. Ng3 {[%emt 0:06:10]} Ba6 {[%emt 0:04:41]} 13. Bc2 {[%emt 0:03:34]} Re8 {[%emt 0:06:36]} 14. O-O {[%emt 0:04:27]} Qd7 {[%emt 0:05:12]} 15. Rd1 {[%emt 0:07:16]} Rad8 {[%emt 0:02:54]} 16. Qe1 {[%emt 0:01:57]} dxe4 {[%emt 0:19:07]} 17. dxe4 {[%emt 0:03:18]} Qe6 {[%emt 0:00:37]} 18. Be3 {[%emt 0:03:03]} Nd7 {[%emt 0:02:41]} 19. Nf5 {[%emt 0:02:51]} Ne7 {[%emt 0:02:14]} 20. N3h4 {[%emt 0:02:58]} Ng6 {[%emt 0:05:08]} 21. Rd2 {[%emt 0:04:18]} Nxh4 {[%emt 0:04:20]} 22. Nxh4 {[%emt 0:00:12]} Bxe3 {[%emt 0:00:59]} 23. Qxe3 {[%emt 0:01:06]} Nc5 {[%emt 0:05:07]} 24. Rad1 {[%emt 0:04:59]} Rxd2 {[%emt 0:00:28]} 25. Rxd2 {[%emt 0:03:25]} Qf6 {[%emt 0:02:11]} 26. Qg3 {[%emt 0:03:11]} Bc8 {[%emt 0:05:55]} 27. Nf3 {[%emt 0:07:40]} Bb7 {[%emt 0:00:07]} 28. Qg4 {[%emt 0:02:16]} Qf4 {[%emt 0:00:49]} 29. Qxf4 {[%emt 0:06:36]} exf4 {[%emt 0:00:01]} 30. b4 {[%emt 0:02:06]} Nxe4 {[%emt 0:01:12]} 31. Rd7 {[%emt 0:00:35]} Nf6 {[%emt 0:00:51]} 32. Rxc7 {[%emt 0:01:24]} Bd5 {[%emt 0:00:20]} 33. bxa5 {[%emt 0:02:30]} bxa5 {[%emt 0:00:01]} 34. Rc5 {[%emt 0:01:20]} g6 {[%emt 0:00:13]} 35. c4 {[%emt 0:02:07]} Be4 {[%emt 0:00:35]} 36. Bb3 {[%emt 0:02:03]} Rb8 {[%emt 0:01:20]} 37. Nd4 {[%emt 0:01:52]} Rd8 {[%emt 0:00:10]} 38. Ne2 {[%emt 0:03:03]} f3 {[%emt 0:00:31]} 39. gxf3 {[%emt 0:01:36]} Bxf3 {[%emt 0:00:01]} 40. Nf4 {[%emt 0:00:00]} Rd4 {[%emt 0:00:00]} 41. Nd5 {[%emt 0:05:37]} Ne4 {[%emt 0:05:57]} 42. Rc7 {[%emt 0:13:51]} Rd2 {[%emt 0:04:58]} 43. c5 {[%emt 0:01:14]} Rb2 {[%emt 0:05:53]} 44. Nf6+ {[%emt 0:05:06]} Nxf6 {[%emt 0:00:05]} 45. Bxf7+ {[%emt 0:00:22]} Kh8 {[%emt 0:01:02]} 46. Bxg6 {[%emt 0:01:37]} Rb7 {[%emt 0:08:30]} 47. Rc8+ {[%emt 0:03:05]} Kg7 {[%emt 0:00:01]} 48. c6 {[%emt 0:01:23]} Rb6 {[%emt 0:04:12]} 49. c7 {[%emt 0:01:51]} Rc6 {[%emt 0:00:04]} 50. Bf5 {[%emt 0:01:25]} Rc1+ {[%emt 0:02:31]} 51. Kh2 {[%emt 0:00:09]} Nh5 {[%emt 0:00:41]} 52. Rg8+ {[%emt 0:01:45]} Kxg8 {[%emt 0:00:01]} 53. c8=Q+ {[%emt 0:00:24]} Rxc8 {[%emt 0:00:02]} 54. Bxc8 {[%emt 0:00:12]} Bc6 {[%emt 0:00:10]} 55. Be6+ {[%emt 0:00:12]} Kg7 {[%emt 0:00:06]} 56. Bb3 {[%emt 0:00:06]} Nf6 {[%emt 0:01:33]} 0-1

[Event "WYCC 2018 G16"]
[Site "Halkidiki"]
[Date "2018.10.23"]
[Round "5"]
[White "Nayberg, Simona"]
[Black "Sankova, Stella"]
[Result "1/2-1/2"]
[ECO "B22"]
[WhiteElo "1857"]
[BlackElo "2051"]
[Annotator "NA"]
[PlyCount "82"]
[EventDate "2018.10.20"]
[EventType "swiss"]
[EventCountry "GRE"]
[SourceTitle "playchess.com"]
[Source "ChessBase"]
[SourceQuality "1"]
[TimeControl "40/5400+30:1800+30"]

1. e4 {[%emt 0:00:00]} c5 {[%emt 0:00:00]} 2. c3 {[%emt 0:00:00]} g6 {[%emt 0:00:00]} 3. d4 {[%emt 0:00:08]} cxd4 {[%emt 0:00:00]} 4. cxd4 {[%emt 0:00:03]} d5 {[%emt 0:00:00]} 5. e5 {[%emt 0:00:23]} Bg7 {[%emt 0:00:00]} 6. h3 {[%emt 0:02:14]} Nh6 {[%emt 0:02:13]} 7. g4 {[%emt 0:02:53]} O-O {[%emt 0:02:12]} 8. f4 {[%emt 0:01:28]} f6 {[%emt 0:01:43]} 9. Nf3 {[%emt 0:00:14]} Nc6 {[%emt 0:00:56]} 10. Bg2 {[%emt 0:02:32]} fxe5 {[%emt 0:01:55]} 11. fxe5 {[%emt 0:00:20]} b6 {[%emt 0:07:51]} 12. O-O {[%emt 0:02:06]} Ba6 $14 {[%emt 0:02:27]} 13. Re1 {[%emt 0:03:39]} Rc8 {[%emt 0:03:12]} 14. Nc3 {[%emt 0:01:08]} e6 {[%emt 0:00:52]} 15. Ng5 {[%emt 0:16:10]} Re8 {[%emt 0:08:01]} 16. Be3 {[%emt 0:07:55]} Kh8 {[%emt 0:03:57]} 17. Qd2 {[%emt 0:03:08]} Qd7 {[%emt 0:06:54]} 18. Nxe6 {[%emt 0:21:07]} Rxe6 {[%emt 0:00:22]} 19. Bxh6 {[%emt 0:01:52]} Bxh6 {[%emt 0:01:21]} 20. Qxh6 {[%emt 0:00:27]} Nxd4 {[%emt 0:00:57]} 21. Qd2 {[%emt 0:06:05]} Nc6 {[%emt 0:01:24]} 22. Qf4 {[%emt 0:08:37]} Ne7 {[%emt 0:14:15]} 23. Rad1 {[%emt 0:01:35]} Bb7 {[%emt 0:01:17]} 24. Qf7 {[%emt 0:00:00]} Rd8 {[%emt 0:02:21]} 25. Rd2 {[%emt 0:04:19]} a6 {[%emt 0:11:34]} 26. a3 {[%emt 0:00:29]} b5 {[%emt 0:01:11]} 27. g5 {[%emt 0:01:36]} Rb6 {[%emt 0:04:01]} 28. e6 {[%emt 0:03:22]} Qd6 {[%emt 0:01:17]} 29. h4 {[%emt 0:04:04]} Qg3 {[%emt 0:03:41]} 30. Rf2 {[%emt 0:01:46]} Qd6 {[%emt 0:01:26]} 31. Rd2 {[%emt 0:01:38]} d4 {[%emt 0:03:59]} 32. Bxb7 {[%emt 0:02:11]} Rxb7 {[%emt 0:05:49]} 33. Ne4 {[%emt 0:00:26]} Qb6 {[%emt 0:00:59]} 34. Rd3 {[%emt 0:00:42]} Nd5 {[%emt 0:01:03]} 35. Qf2 {[%emt 0:01:13]} Re7 {[%emt 0:03:11]} 36. Nf6 {[%emt 0:00:48]} Rxe6 {[%emt 0:01:52]} 37. Nxd5 {[%emt 0:00:14]} Rxe1+ {[%emt 0:00:04]} 38. Qxe1 {[%emt 0:00:04]} Rxd5 {[%emt 0:00:14]} 39. Qe8+ {[%emt 0:00:07]} Kg7 {[%emt 0:00:05]} 40. Qe7+ {[%emt 0:00:00]} Kg8 {[%emt 0:00:00]} 41. Qe8+ {[%emt 0:06:36]} Kg7 {[%emt 0:03:37]} 1/2-1/2

[Event "WYCC 2018 G16"]
[Site "Halkidiki"]
[Date "2018.10.23"]
[Round "5"]
[White "Puppi Lazo, Stephanie Beatriz"]
[Black "Palma, Maria"]
[Result "1-0"]
[ECO "C07"]
[WhiteElo "1847"]
[BlackElo "2106"]
[Annotator "NA"]
[PlyCount "45"]
[EventDate "2018.10.20"]
[EventType "swiss"]
[EventCountry "GRE"]
[SourceTitle "playchess.com"]
[Source "ChessBase"]
[SourceQuality "1"]
[TimeControl "40/5400+30:1800+30"]

1. e4 {[%emt 0:00:00]} e6 {[%emt 0:00:00]} 2. d4 {[%emt 0:00:00]} d5 {[%emt 0:00:00]} 3. Nd2 {[%emt 0:00:00]} c5 {[%emt 0:00:07]} 4. Ngf3 {[%emt 0:01:13]} cxd4 {[%emt 0:01:52]} 5. Nxd4 {[%emt 0:00:12]} Nf6 {[%emt 0:09:25]} 6. Bb5+ {[%emt 0:19:14]} Bd7 {[%emt 0:02:43]} 7. Bd3 {[%emt 0:04:16]} Bc6 {[%emt 0:07:52]} 8. e5 {[%emt 0:03:12]} Ne4 $14 {[%emt 0:06:34]} 9. O-O {[%emt 0:13:55]} Qb6 {[%emt 0:15:37]} 10. c3 {[%emt 0:16:55]} Nd7 {[%emt 0:04:52]} 11. N2f3 {[%emt 0:06:08]} Be7 {[%emt 0:04:26]} 12. Qe2 {[%emt 0:02:26]} Ndc5 {[%emt 0:05:04]} 13. Bc2 {[%emt 0:07:49]} a6 {[%emt 0:06:52]} 14. Nxc6 {[%emt 0:01:33]} bxc6 {[%emt 0:04:54]} 15. Nd4 {[%emt 0:00:45]} h6 {[%emt 0:07:49]} 16. Qg4 {[%emt 0:05:33]} h5 {[%emt 0:07:53]} 17. Qxg7 {[%emt 0:03:35]} Kd7 {[%emt 0:00:28]} 18. b4 {[%emt 0:00:13]} Rag8 {[%emt 0:03:20]} 19. bxc5 {[%emt 0:00:42]} Nxc5 {[%emt 0:00:57]} 20. Qxf7 {[%emt 0:01:57]} Rf8 {[%emt 0:03:06]} 21. Rb1 {[%emt 0:01:02]} Qa7 {[%emt 0:06:01]} 22. Qxe7+ {[%emt 0:00:13]} Kxe7 {[%emt 0:00:14]} 23. Nxc6+ {[%emt 0:00:04]} 1-0

[Event "WYCC 2018 G16"]
[Site "Halkidiki"]
[Date "2018.10.23"]
[Round "5"]
[White "Zhang, Cindy"]
[Black "Cramling Bellon, Anna"]
[Result "1-0"]
[ECO "A45"]
[WhiteElo "1790"]
[BlackElo "2025"]
[Annotator "NA"]
[PlyCount "75"]
[EventDate "2018.10.20"]
[EventType "swiss"]
[EventCountry "GRE"]
[SourceTitle "playchess.com"]
[Source "ChessBase"]
[SourceQuality "1"]
[TimeControl "40/5400+30:1800+30"]

1. d4 {[%emt 0:00:00]} Nf6 {[%emt 0:00:00]} 2. Bf4 {[%emt 0:00:00]} d5 {[%emt 0:00:00]} 3. e3 {[%emt 0:00:00]} c5 {[%emt 0:00:01]} 4. Nc3 {[%emt 0:00:30]} a6 {[%emt 0:00:09]} 5. dxc5 {[%emt 0:00:50]} Nc6 {[%emt 0:01:26]} 6. Nf3 {[%emt 0:01:05]} e6 {[%emt 0:00:33]} 7. Na4 {[%emt 0:00:59]} Bxc5 {[%emt 0:00:56]} 8. Nxc5 {[%emt 0:00:30]} Qa5+ {[%emt 0:00:02]} 9. c3 {[%emt 0:00:16]} Qxc5 {[%emt 0:00:06]} 10. Ne5 {[%emt 0:03:00]} O-O {[%emt 0:11:50]} 11. Bd3 {[%emt 0:02:33]} Ne4 {[%emt 0:24:09]} 12. O-O {[%emt 0:12:05]} Nxe5 {[%emt 0:10:24]} 13. Bxe5 {[%emt 0:00:17]} f6 {[%emt 0:00:49]} 14. Bd4 {[%emt 0:05:29]} Qc7 {[%emt 0:03:12]} 15. c4 {[%emt 0:05:27]} Bd7 {[%emt 0:14:16]} 16. cxd5 {[%emt 0:03:57]} exd5 {[%emt 0:00:01]} 17. Qb3 {[%emt 0:01:50]} Kh8 {[%emt 0:04:15]} 18. Qxd5 {[%emt 0:02:00]} Bc6 {[%emt 0:01:13]} 19. Qf5 {[%emt 0:06:05]} g6 {[%emt 0:01:26]} 20. Qg4 {[%emt 0:03:53]} Rae8 {[%emt 0:17:32]} 21. Rac1 {[%emt 0:04:37]} Qd6 {[%emt 0:03:06]} 22. Rfd1 {[%emt 0:03:07]} Rf7 {[%emt 0:03:03]} 23. Qh4 {[%emt 0:03:37]} g5 {[%emt 0:02:16]} 24. Qh5 {[%emt 0:01:36]} Qd7 {[%emt 0:00:31]} 25. Bxe4 {[%emt 0:04:00]} Rxe4 {[%emt 0:00:37]} 26. Bxf6+ {[%emt 0:00:18]} Rxf6 {[%emt 0:00:03]} 27. Rxd7 {[%emt 0:00:10]} Bxd7 {[%emt 0:00:01]} 28. Qxg5 {[%emt 0:00:28]} Rg6 {[%emt 0:01:32]} 29. Qd8+ {[%emt 0:01:13]} Be8 {[%emt 0:00:01]} 30. f3 {[%emt 0:01:11]} Ree6 {[%emt 0:00:35]} 31. f4 {[%emt 0:03:07]} Rg7 {[%emt 0:00:49]} 32. Rc8 {[%emt 0:02:31]} Rge7 {[%emt 0:00:33]} 33. Kf2 {[%emt 0:02:19]} Kg8 {[%emt 0:00:14]} 34. Qd5 {[%emt 0:00:46]} Kh8 {[%emt 0:00:45]} 35. f5 {[%emt 0:02:06]} Re4 {[%emt 0:00:32]} 36. f6 {[%emt 0:01:49]} R7e5 {[%emt 0:00:23]} 37. Qf7 {[%emt 0:01:02]} Rf5+ {[%emt 0:00:33]} 38. Ke2 {[%emt 0:00:21]} 1-0

[Event "WYCC 2018 G16"]
[Site "Halkidiki"]
[Date "2018.10.23"]
[Round "5"]
[White "Mikic, Ivana"]
[Black "Cotun, Mihaela"]
[Result "1/2-1/2"]
[ECO "B53"]
[WhiteElo "1783"]
[BlackElo "1482"]
[Annotator "NA"]
[PlyCount "89"]
[EventDate "2018.10.20"]
[EventType "swiss"]
[EventCountry "GRE"]
[SourceTitle "playchess.com"]
[Source "ChessBase"]
[SourceQuality "1"]
[TimeControl "40/5400+30:1800+30"]

1. e4 {[%emt 0:00:00]} c5 {[%emt 0:00:00]} 2. Nf3 {[%emt 0:00:00]} d6 {[%emt 0:00:00]} 3. d4 {[%emt 0:00:00]} cxd4 {[%emt 0:00:00]} 4. Qxd4 {[%emt 0:00:24]} a6 {[%emt 0:01:12]} 5. c4 {[%emt 0:00:44]} Nc6 {[%emt 0:00:19]} 6. Qd3 {[%emt 0:00:56]} g6 {[%emt 0:05:20]} 7. Nc3 {[%emt 0:01:13]} Bg7 {[%emt 0:00:18]} 8. Be3 {[%emt 0:00:32]} Nf6 {[%emt 0:00:51]} 9. Nd4 {[%emt 0:02:27]} Ne5 {[%emt 0:02:01]} 10. Qd2 {[%emt 0:02:03]} Bd7 {[%emt 0:03:17]} 11. Be2 {[%emt 0:00:45]} Rc8 {[%emt 0:00:55]} 12. b3 {[%emt 0:00:29]} Qa5 {[%emt 0:04:28]} 13. Rc1 {[%emt 0:02:14]} b5 {[%emt 0:04:38]} 14. cxb5 {[%emt 0:03:23]} Nxe4 {[%emt 0:01:44]} 15. Nc6 {[%emt 0:04:26]} Rxc6 {[%emt 0:14:36]} 16. bxc6 {[%emt 0:10:53]} Nxd2 {[%emt 0:03:44]} 17. cxd7+ {[%emt 0:00:11]} Nxd7 {[%emt 0:07:36]} 18. Bxd2 {[%emt 0:00:25]} O-O {[%emt 0:04:35]} 19. Na4 {[%emt 0:04:54]} Qd5 {[%emt 0:06:09]} 20. Bf3 {[%emt 0:04:45]} Qe6+ {[%emt 0:05:18]} 21. Be3 {[%emt 0:07:06]} Ne5 {[%emt 0:02:59]} 22. Be2 {[%emt 0:01:31]} d5 {[%emt 0:06:26]} 23. Nc5 {[%emt 0:01:11]} Qd6 {[%emt 0:01:05]} 24. O-O {[%emt 0:05:58]} Nc6 {[%emt 0:10:37]} 25. Nxa6 {[%emt 0:02:32]} d4 {[%emt 0:01:26]} 26. Rfd1 {[%emt 0:02:40]} e5 {[%emt 0:03:22]} 27. Bf3 {[%emt 0:02:54]} Ne7 {[%emt 0:02:22]} 28. Nc5 {[%emt 0:02:58]} Nf5 {[%emt 0:03:26]} 29. Bd2 {[%emt 0:01:04]} Rb8 {[%emt 0:01:09]} 30. a4 {[%emt 0:01:15]} Ne7 {[%emt 0:01:55]} 31. a5 {[%emt 0:01:24]} Nd5 {[%emt 0:01:40]} 32. a6 {[%emt 0:01:25]} Nb6 {[%emt 0:01:56]} 33. a7 {[%emt 0:02:04]} Re8 {[%emt 0:00:33]} 34. Nb7 {[%emt 0:04:14]} Qe7 {[%emt 0:00:17]} 35. Ba5 {[%emt 0:00:35]} Na8 {[%emt 0:00:42]} 36. Bd5 {[%emt 0:04:49]} e4 {[%emt 0:00:30]} 37. Rc4 {[%emt 0:04:20]} Qg5 {[%emt 0:00:31]} 38. Rc5 {[%emt 0:03:01]} Qg4 {[%emt 0:00:32]} 39. f3 {[%emt 0:01:52]} exf3 {[%emt 0:00:21]} 40. Bxf3 {[%emt 0:00:00]} Qf4 {[%emt 0:00:00]} 41. Nd8 {[%emt 0:02:49]} Be5 {[%emt 0:13:26]} 42. h3 {[%emt 0:07:28]} Qe3+ {[%emt 0:02:26]} 43. Kh1 {[%emt 0:00:51]} Qf4 {[%emt 0:00:29]} 44. Kg1 {[%emt 0:02:07]} Qe3+ {[%emt 0:00:12]} 45. Kh1 {[%emt 0:00:06]} 1/2-1/2

[Event "WYCC 2018 G16"]
[Site "Halkidiki"]
[Date "2018.10.23"]
[Round "5"]
[White "Kalyva, Kyriaki"]
[Black "Miroshnik, Ekaterina"]
[Result "0-1"]
[ECO "E46"]
[WhiteElo "1779"]
[BlackElo "2023"]
[Annotator "NA"]
[PlyCount "82"]
[EventDate "2018.10.20"]
[EventType "swiss"]
[EventCountry "GRE"]
[SourceTitle "playchess.com"]
[Source "ChessBase"]
[SourceQuality "1"]
[TimeControl "40/5400+30:1800+30"]

1. d4 {[%emt 0:00:00]} e6 {[%emt 0:00:00]} 2. c4 {[%emt 0:00:00]} Nf6 {[%emt 0:00:00]} 3. Nc3 {[%emt 0:00:00]} Bb4 {[%emt 0:00:00]} 4. e3 {[%emt 0:00:00]} O-O {[%emt 0:00:00]} 5. Nge2 {[%emt 0:00:01]} c6 {[%emt 0:00:00] E46: Nimzo-Indian: Rubinstein: 4 e3 0-0 5 Ne2 without early Bd3} (5... d5 6. a3 Be7 7. cxd5 exd5 8. Nf4 Re8 9. Bd3 Bd6 10. O-O Bxf4 11. exf4 Nc6 12. Be3 Ne7 13. Qc2 g6 14. f3 Bf5 15. g4 Bxd3 16. Qxd3 {½-½ (48) Caruana,F (2811)-So,W (2792) Wijk aan Zee 2018}) 6. a3 {[%emt 0:00:13]} Ba5 {[%emt 0:00:01]} 7. b4 {[%emt 0:05:16]} Bc7 {[%emt 0:00:04]} 8. e4 {[%emt 0:05:30]} d5 {[%emt 0:00:15]} 9. e5 {[%emt 0:03:03]} Nfd7 {[%emt 0:06:57]} 10. cxd5 {[%emt 0:04:56]} exd5 {[%emt 0:01:17]} 11. g3 {[%emt 0:01:45]} a5 $146 {[%emt 0:00:29]} ({Predecessor:} 11... f6 12. exf6 Qxf6 13. f4 {½-½ (50) Ranaldi,L (2278)-Lund,G (1914) Oslo 2017}) 12. b5 {[%emt 0:06:10]} f6 {[%emt 0:06:28]} 13. bxc6 {[%emt 0:04:50]} bxc6 {[%emt 0:00:56]} 14. Bg2 {[%emt 0:01:55]} Nb6 {[%emt 0:08:13]} 15. exf6 {[%emt 0:05:01]} Qxf6 {[%emt 0:00:29]} 16. O-O {[%emt 0:00:26]} Bg4 {[%emt 0:02:59]} 17. h3 {[%emt 0:09:04]} Bf3 {[%emt 0:07:38]} 18. Qd3 {[%emt 0:08:54]} Bxg2 {[%emt 0:07:12]} 19. Kxg2 $15 {[%emt 0:00:07]} N8d7 {[%emt 0:00:12]} 20. Bf4 {[%emt 0:02:49]} Bxf4 {[%emt 0:00:15]} 21. Nxf4 {[%emt 0:00:24]} Rae8 {[%emt 0:02:30]} 22. Kg1 {[%emt 0:19:22]} Qg5 {[%emt 0:07:30]} 23. Ng2 {[%emt 0:02:36]} Nc4 {[%emt 0:01:18]} 24. Ne2 {[%emt 0:02:11]} Qd2 {[%emt 0:05:11]} 25. Nef4 {[%emt 0:02:16]} Qxd3 {[%emt 0:00:35]} 26. Nxd3 {[%emt 0:00:07]} Nd2 {[%emt 0:00:04]} 27. Rfd1 {[%emt 0:01:30]} Nf3+ {[%emt 0:00:11]} 28. Kf1 {[%emt 0:00:46]} Nxd4 {[%emt 0:00:08]} 29. Ndf4 {[%emt 0:01:19]} Nb3 {[%emt 0:03:32]} 30. Rab1 {[%emt 0:00:31]} a4 {[%emt 0:00:04]} 31. Rb2 {[%emt 0:04:20]} Nb6 {[%emt 0:04:21]} 32. Rc2 {[%emt 0:02:08]} Nc4 {[%emt 0:00:37]} 33. Nd3 {[%emt 0:00:31]} Nd4 {[%emt 0:03:31]} 34. Rcc1 {[%emt 0:00:20]} Ne2 {[%emt 0:00:35]} 35. Ngf4 {[%emt 0:02:09]} Nxc1 {[%emt 0:00:25]} 36. Rxc1 {[%emt 0:00:06]} g5 {[%emt 0:00:21]} 37. Ne2 {[%emt 0:00:45]} Nd2+ {[%emt 0:00:06]} 38. Ke1 {[%emt 0:00:27]} Nb3 {[%emt 0:00:04]} 39. Rb1 {[%emt 0:01:46]} c5 {[%emt 0:01:20]} 40. Ndc1 {[%emt 0:00:00]} d4 {[%emt 0:00:00]} 41. Kd1 {[%emt 0:01:04]} Rxf2 {[%emt 0:00:43]} 0-1